{"text_format":"1","workbook":"xlsx","n_sheets":9,"sheets":["Food","Equip Ser #s","Ag","Measurements","Info","Recipies","Health","Animals","Electronics"],"not_rendered":{"charts":0,"images":0,"macros":0,"external_links":0,"defined_names":2,"comments":0,"pivot_tables":0},"unopened":[],"bounds":{"document_bytes":16777216,"sheet_cells":100000,"rows_first":2000,"rows_last":500,"rows_between":2000,"halvings":0,"cell_chars":16384,"cell_head_chars":4096},"cells_cut":0,"cells_raw":0,"read":"whole","date_system":"1900"}

{"sheet":"Food","index":0,"n_rows":76,"n_cols":21,"rows_kept":76,"cut":false,"hidden":false,"merged":[[34,17,35,17],[36,18,36,21],[37,18,37,21],[38,18,38,21],[39,18,40,21],[48,18,50,21],[27,18,28,21],[21,18,22,21],[23,18,23,21],[25,18,26,21],[31,18,32,21],[29,18,30,21],[33,18,33,21],[34,18,35,21],[41,18,45,21],[46,18,47,21],[18,18,20,21],[15,18,17,21],[13,13,13,16],[14,15,14,16],[7,18,7,19],[8,18,8,19],[9,18,9,19],[10,18,10,19],[11,18,11,19],[59,3,59,4],[1,13,1,15],[2,10,2,11],[2,18,2,19],[3,18,3,19],[4,18,4,19],[5,18,5,19],[6,18,6,19],[1,5,1,8],[55,3,55,4],[56,3,56,4],[57,3,57,4],[2,1,2,3],[58,3,58,4],[50,3,50,4],[51,3,51,4],[52,3,52,4],[53,3,53,4],[54,3,54,4],[45,3,45,4],[46,3,46,4],[47,3,47,4],[48,3,48,4],[49,3,49,4]]}
[]
[null,null,null,null,null,"Calorie Chart",null,null,null,null,null,null,null,"Thermometer Readings"]
[null,"Baking",null,null,null,null,null,null,null,null,"Oven Chart",null,null,"MEAT","TEMP","FRIED FOODS","TEMP","TIME","CANDY / FROSTINGS",null,"TEMP"]
[null,"ITEM","TEMP","TIME (Minutes)",null,null,null,null,null,null,"Slow","250-325",null,"Beef",null,"Croquettes",null,null,"Thread",null,"230 - 234"]
[null,"Yeast Breads",null,null,null,null,null,null,null,null,"mderate","325 - 375",null,"rare",140,"cooked","375 - 385","2 - 4","Soft Ball",null,"234 - 238"]
[null,"Yeast Bread","400 - 425","40 - 45",null,null,null,null,null,null,"mod - hot","375 - 400",null,"medium",160,"uncooked",370,"5 - 6","Firm Ball",null,"244 - 248"]
[null,"Sweet Rolls","350 - 375","15 - 25",null,null,null,null,null,null,"hot","400 - 450",null,"done",170,"Doughnuts",375,"2 - 3","Hard Ball",null,"248 - 254"]
[null,"Plain Rolls","400 - 450","15 - 20",null,null,null,null,null,null,"very hot","450 -500",null,"Pork","185","Fritters","365 - 375","2 - 5","Very Hard Ball",null,"254 - 260"]
[null,"Quick Breads",null,null,null,null,null,null,null,null,null,null,null,"smoked","160 - 170","Fries",370,"5 - 7","Light Crack",null,"270 - 295"]
[null,"Buscuits",450,"12 - 15",null,null,null,null,null,null,null,null,null,"Lamb","175 - 180","Rings","375 - 380","2 - 3","Hard Crack",null,"290 - 300"]
[null,"Muffins","400 - 425","20 - 25",null,null,null,null,null,null,null,null,null,"Veal","170","Oysters",375,"1 - 2"]
[null,"Popovers",450,20,null,null,null,null,null,null,null,null,null,null,null,"Small fish","375 - 385","2 - 5"]
[null,"then",350,"15 - 20"]
[null,"Corn Bread","400 - 425","20 - 30",null,null,null,null,null,null,null,null,null,"Storing Perishables - Refrigeration",null,null,null,"Refrig 35 - 40","Freezer 0 deg."]
[null,"Nut Bread",350,"50 - 75",null,null,null,null,null,null,null,null,null,"Type","Item","Time",null,null,"Time"]
[null,"Gingerbread",350,"40 - 50",null,null,null,null,null,null,null,null,null,"DAIRY","Milk / cream",1,"week","Breads","Room temperature in breadbox or fridge and use within 5 - 7 days, 2 - 3 mo. In refrig."]
[null,"Cakes",null,null,null,null,null,null,null,null,null,null,null,null,"Cheese, spreads","1 - 2","weeks"]
[null,"Angel",325,"60 - 75",null,null,null,null,null,null,null,null,null,null,"Cottage Cheese","3 - 5","days"]
[null,"Sponge",325,"60 - 75",null,null,null,null,null,null,null,null,null,null,"Cream Cheese",2,"weeks","Cereals","Store at room temperature in tightly closed containers.  Spices, flour and sugar is the same"]
[null,"w/ Shortening",null,null,null,null,null,null,null,null,null,null,null,null,"Soft cheese food",2,"weeks"]
[null,"Cup","350 - 375","20 - 25",null,null,null,null,null,null,null,null,null,null,"Hard Cheese","1 - 2","months"]
[null,"Layer","350 - 375","25 - 35",null,null,null,null,null,null,null,null,null,"EGGS","in shell","1","week","Dry mixes","Store at room temperature away from heat."]
[null,"Loaf",350,"50 - 60",null,null,null,null,null,null,null,null,null,null,"yolks, whites","2 - 4 "," days"]
[null,"Sheet","375 - 400","20 - 30",null,null,null,null,null,null,null,null,null,"FRUITS","Ripe apples","1","months","Dried Egg","Store in refrigerator. Will keep about a year."]
[null,"Fruit","250 - 275","2 - 4 hrs",null,null,null,null,null,null,null,null,null,null,"Bananas, Pears","3 - 5 ","days"]
[null,"Cookies",null,null,null,null,null,null,null,null,null,null,null,null,"Avacados","3 - 5","days","Butter, Fats","Store in refrigerator and use within 2 weeks."]
[null,"Bars",350,"25 - 30",null,null,null,null,null,null,null,null,null,null,"Berries, cherries","2 - 3","days"]
[null,"Drop","350 - 400","10 - 15",null,null,null,null,null,null,null,null,null,null,"Cranberries","1","week","Oils","Cooking and salad oils, for  long storage, keep in refrigerator"]
[null,"Rolled","375 - 400","8 - 12",null,null,null,null,null,null,null,null,null,null,"Grapes","3 - 5","days"]
[null,"refrigerator","375 - 400","6 - 10",null,null,null,null,null,null,null,null,null,null,"Citrus fruits","2","weeks","Mayonnaise","Salad dressings keep in refrigerator after opening"]
[null,"Puddings",null,null,null,null,null,null,null,null,null,null,null,null,"Peaches, Nectarines","3 - 5","days"]
[null,"custards",325,"25 - 30",null,null,null,null,null,null,null,null,null,null,"Plums, apricots","3 - 5","days","Shortening","Lard and solid fats go rancid. Lard that is not stabelized should be refrigerated."]
[null,"Rice",350,60,null,null,null,null,null,null,null,null,null,null,"Pinapple, cut","2 - 3","days"]
[null,"Bread",350,"40 - 50",null,null,null,null,null,null,null,null,null,"VEGGIES","Asperagus","2 - 3","days","Melons","Refrigerate after opening"]
[null,"Pastry",null,null,null,null,null,null,null,null,null,null,null,null,"Broccoli / Sprouts","3 - 5","days","Canned Fruit  Fruit Juices","Cover and store in the refrigerator"]
[null,"Shell",450,"12 - 15",null,null,null,null,null,null,null,null,null,null,"Cabbage","1 - 2 ","weeks"]
[null,"Custard Pie",450,"10",null,null,null,null,null,null,null,null,null,null,"Cauliflower, celery","1","week","Dried Fruits","Cool place for 6 months"]
[null,"then",325,"25",null,null,null,null,null,null,null,null,null,null,"Snap beans","1","week","Jellies, Jams","Cover and store in the refrigerator"]
[null,"Two Crust Pie",null,null,null,null,null,null,null,null,null,null,null,null,"Carrots, beets","2","weeks","Fish","Store in the refrigerator, Use in 1 - 2 days."]
[null,"cooked filling","425 - 450","25 - 35",null,null,null,null,null,null,null,null,null,null,"parsnips, radishes","2","weeks","Stuffings","Store seperately from bird - use in 1 -2 days."]
[null,"Uncooked fill",450,"10",null,null,null,null,null,null,null,null,null,null,"Peas, lima beans","3 - 5","days"]
[null,"then",350,"30 - 40",null,null,null,null,null,null,null,null,null,null,"Lettuce, leaf salads","1","week","Dry milk","Store in tightly sealed container. Nonfat will keep on cupboard shelf several months, whole should be stored in the refrigerator, tightly covered after opening."]
[null,"Meringue",350,"12 - 15",null,null,null,null,null,null,null,null,null,null,"Onions, green","3 - 5","days"]
[null,null,null,null,null,null,null,null,null,null,null,null,null,null,"Peppers, cucumbers","1","week"]
[null,"Roasting",null,null,null,null,null,null,null,null,null,null,null,null,"Rhubarb","3 - 5","days"]
[null,"ITEM","TEMP","TIME (Minutes)",null,null,null,null,null,null,null,null,null,null,"Spinach, Kale,greens","3 - 5","days"]
[null,"Beef",null,"Pound",null,null,null,null,null,null,null,null,null,null,"Squash, summer","3 - 5 ","days","Evap milk","Store at room temp. After opening refrigerate in tightly covered container."]
[null,"rare","300 - 350","18-20",null,null,null,null,null,null,null,null,null,null,"Corn, sweet","1","short as poss"]
[null,"med","300 - 350","22 - 25",null,null,null,null,null,null,null,null,null,null,"tomatoes","1","week","Potatoes","Store in dark, dry place at 45 - 50 deg. Will keep several months. If stored at room temp, use in 1 week."]
[null,"done","300 - 350","27 - 30",null,null,null,null,null,null,null,null,null,null,"COOKED Vegies","4 - 5","days"]
[null,"Lamb","300 - 350","30 - 35",null,null,null,null,null,null,null,null,null,"MEATS"]
[null,"Pork",null,null,null,null,null,null,null,null,null,null,null,"Fresh","Chops, Lamb, Pork","3 - 5","days",null,"8 - 12","Months"]
[null,"Fresh","300 - 350","35 - 40",null,null,null,null,null,null,null,null,null,null,"Ground and stew","1 - 2","days",null,"2 - 3","Months"]
[null,"Smoked","300 - 350","20 - 30",null,null,null,null,null,null,null,null,null,null,"Roast, beef & lamb","3 - 5","days",null,"8 - 12","Months"]
[null,"Veal",300,"30",null,null,null,null,null,null,null,null,null,null,"Roasts, pork & veal","3 - 5","days",null,"4 - 8","Months"]
[null,"All Rolled ","300 - 350","Add 10 - 15 min / #",null,null,null,null,null,null,null,null,null,null,"Sausage, pork","1 - 2","days",null,"1 - 2 ","Months"]
[null,"Chicken","325 - 350","22 - 30",null,null,null,null,null,null,null,null,null,null,"Variety meats","1 - 2","days",null,"3 - 4","Months"]
[null,"Duck","325 - 350","20 - 25",null,null,null,null,null,null,null,null,null,"Processed","Bacon","7","days",null,"1","Months"]
[null,"Goose","325 - 350","25 - 30",null,null,null,null,null,null,null,null,null,null,"Frankfurters","7","days",null,"1/2","Month"]
[null,"Turkey","250 - 325","15 - 25",null,null,null,null,null,null,null,null,null,null,"Ham, whole","7","days",null,"1 - 2","months"]
[null,"Broiling",null,null,null,null,null,null,null,null,null,null,null,null,"Ham, half","3 - 5","days",null,"1 - 2","months"]
[null,null,"Rare","Med"," Done",null,null,null,null,null,null,null,null,null,"Ham, sliced","3","days",null,"1 - 2","months"]
[null,"Beef Steaks",null,null,null,null,null,null,null,null,null,null,null,null,"Lunch Meats","3 - 5","days",null,"0","No freeze"]
[null,"1 in",15,"18 - 20 ",25,null,null,null,null,null,null,null,null,null,"Sausage, smoked","7","days",null,"0","No freeze"]
[null,"1 1/2 in","20","25 - 30","50",null,null,null,null,null,null,null,null,null,"sausage, dry","14 - 21","days",null,"0","No freeze"]
[null,2,"30","35 - 40","50",null,null,null,null,null,null,null,null,"Cooked","meat and dishes","1 - 2","days",null,"2 - 3","months"]
[null,"Lamb",null,null,null,null,null,null,null,null,null,null,null,null,"Gravy and Meat Sauce","1 - 2","days",null,"2 - 3","months"]
[null,"1 in","12",null,null,null,null,null,null,null,null,null,null,"Poultry","Whole fresh chicken","1 - 2","days",null,"12","months"]
[null,1.5,"18",null,null,null,null,null,null,null,null,null,null,null,"Whole fresh turkey","1 -2 ","days",null,"12","months"]
[null,2,"22",null,null,null,null,null,null,null,null,null,null,null,"Turkey, chicken parts","1 - 2","days",null,"6","months"]
[null,"Ham","(tenderized is less time)",null,null,null,null,null,null,null,null,null,null,null,"Duck, goose whole","1 - 2","days",null,"6","months"]
[null,"1/2 in","12 - 20",null,null,null,null,null,null,null,null,null,null,null,"Giblets","1 - 2","days",null,"3","months"]
[null,"1 in ","20 - 30",null,null,null,null,null,null,null,null,null,null,"cooked","Poultry Dishes","1 - 2","days",null,"6","months"]
[null,"Bacon","2012-04-05",null,null,null,null,null,null,null,null,null,null,null,"Fried Chicken","1 - 2","days",null,"4","months"]
[null,null,null,null,null,null,null,null,null,null,null,null,null,null,"Pieces, broth covered","1 - 2","days",null,"6","months"]
[null,null,null,null,null,null,null,null,null,null,null,null,null,null,"Pieces, no broth","2 - 2","days",null,"1","Month"]

{"sheet":"Equip Ser #s","index":1,"n_rows":0,"n_cols":0,"rows_kept":0,"cut":false,"hidden":false,"merged":[]}

{"sheet":"Ag","index":2,"n_rows":42,"n_cols":12,"rows_kept":42,"cut":false,"hidden":false,"merged":[[19,1,19,3],[1,1,1,3],[6,11,7,13],[1,10,1,13],[1,5,1,8],[4,5,4,6],[4,7,4,8]]}
[]
[null,"Common Houseplant Problems",null,null,null,"GERMINATION",null,null,null,null,"Humidity Dependant (8% is lowest here)"]
[null,null,null,null,null,null,null,null,null,null,"(OW - DW) / OW = MC"]
[null,null,null,null,null,null,null,null,null,null,"OW - (MC x OW) = DW"]
[null,"PROBLEM","CAUSE","CURE",null,"Vegtables",null,"Annuals",null,null,"(OW - (OW x (MC - DMC ="]
[null,"Yellowing Bottom Leaves","Lack of Nitrogen","Water Regularly. Include liquid fertilizer",null,"Name","# days","Name","# days"]
[null,"Soft stems","Too much water. Plant set too deep.","Let plant dry out. Establish proper watering rate. Transplant to larger pot.",null,"Asparagus","21 - 28","Acrolinium","8 - 10",null,null,"OW = Original Weight                     DW = dry Weight                     MC= Moisture Content                   DMC= Desired MC"]
[null,"Curling leaves","Too much water in roots.","transplant to a larger pot with drainage holes. Establish proper watering rate.",null,"Beans, bush, bush lima, pole","6 - 10","Ageratum","7 - 11"]
[null,"Dropping leaves","Old leaves. Sudden decrease in light. New leaves. Top soil too heavy","Old: Keep plant in sunny area.                                        New: Repot with mixture of potting soil and vermiculite",null,"Beans, pole lima","7 - 12","Alyssum, sweet","10 - 13"]
[null,"Black, misshapen leaves.","soil too salty","Remove plant. Flush salts from soil and roots. Repot.",null,"Beets","7 - 10","Browallia","18 - 20"]
[null,"Dull leaves during new growth","underfertilized","Fertilize on a regular basis.",null,"Broccoli","6 - 10","Cacalia","8 - 12"]
[null,"Brown leaf tips.","Floride injury","Trim off the damaged areas. Keep soil uniformly moist.",null,"Brussel Sprouts","6 - 10","Calendula","10 - 12"]
[null,"Black spots on leaves"," Drafts","Move plant to less drafty area.",null,"Cabbage","6 - 10","California poppy","5 - 10"]
[null,"White fuzz on leaves. Flying fuzz","Mealybugs or whitefly","White fuzz: use Malathion           Flying fuzz: use Malathion and rub leaves with rubbing alcohol every 3 - 4 days.",null,"Carrots","10 - 15","Candytuft","6 - 9"]
[null,"Web-like matter on underside of leaves","Red spider","Wahs plant. Use malathion.",null,"Cauliflower","6 - 10","Canterbury Bell","12 - 15"]
[null,"Pale, colorless new leaves that quickly turn brown","Lack of Humidity","Spray leaves. Raise room humidity if possible.",null,"Celery","12 - 20","Celosia, (Coxcomb)","20 - 25"]
[null,"Tan spots on leaves","Too much direct sunlight","Move plant out of sunlight",null,"Chard, Swiss","7 - 10","Centaurea (Ragged Robin)","5 - 20"]
[null,"Brown scales on stems","small brown insects","Rub leaves with rubbing alcohol every 3 - 4 days.",null,"Collards","6 - 10","Chrysanthemum","6 - 8"]
[null,null,null,null,null,"Corn, Sweet","7 - 12","Cosmos","5 - 15"]
[null,"Lavendar",null,null,null,"Cress, Garden","4 - 5","Cynoglossum","11 - 15"]
[null,"Name","Description","Comments",null,"Cucumber","6 - 8","Flax","13 - 16"]
[null,null,null,null,null,"Eggplant","10 - 15","Four-o-clock","12 - 15"]
[null,null,null,null,null,"Endive","8 - 12","Gaillardia","12 - 15"]
[null,null,null,null,null,"Kohlrabi","6 - 8","Gomphrena","20 - 25"]
[null,null,null,null,null,"Lettuce","6 - 10","Helichrysum","5 - 10"]
[null,null,null,null,null,"Muskmelon","6 - 10","Larkspur","15 - 20"]
[null,null,null,null,null,"Mustard","4 - 5","Lupine","25 - 30"]
[null,null,null,null,null,"Okra","15 - 20","Marigold","5 - 8"]
[null,null,null,null,null,"Onion","8 - 12","Nicotaina","20 - 25"]
[null,null,null,null,null,"Parsley","18 - 24","Petunia","18 - 20"]
[null,null,null,null,null,"Parsnip","12 - 18","Phlox Drummondi","20 - 25"]
[null,null,null,null,null,"Peas","6 - 10","Pinks","5 - 8"]
[null,null,null,null,null,"Pepper","10 - 14","Portulaca","18 - 20"]
[null,null,null,null,null,"Pumpkin","6 - 10","Scabiosa"," 18 - 20"]
[null,null,null,null,null,"Radish","4 - 6","Snapdragon","20 - 25"]
[null,null,null,null,null,"Rhubarb","12 - 14","Sweetpea","15 - 20"]
[null,null,null,null,null,"Rutabaga"," 4 - 7","Verbena"," 8 - 10"]
[null,null,null,null,null,"Spinach","6 - 12","Zinnia","5 - 8"]
[null,null,null,null,null,"Squash, bush or vine","6 - 10"]
[null,null,null,null,null,"Tomato","6 - 10"]
[null,null,null,null,null,"Turnip","4 - 7"]
[null,null,null,null,null,"Watermelon","8 - 12"]

{"sheet":"Measurements","index":3,"n_rows":96,"n_cols":27,"rows_kept":96,"cut":false,"hidden":false,"merged":[[63,9,63,11],[80,9,80,11],[55,1,55,2],[18,1,18,12],[1,1,1,12],[19,1,19,5],[19,8,19,12],[25,1,25,5],[25,8,25,12],[2,1,2,5],[10,1,10,5],[2,8,2,12],[10,8,10,12],[30,1,30,5],[33,8,33,12],[52,1,52,12],[54,1,54,2],[0,0,0,12],[0,14,0,22],[9,17,9,19],[2,14,2,15],[12,14,12,15],[3,14,3,15],[14,17,14,18],[17,15,17,16],[17,17,17,18],[15,17,15,18],[16,17,16,18],[57,14,57,19],[28,14,28,15],[61,1,61,7],[38,1,38,2],[38,4,38,5],[38,8,38,9],[38,11,38,12],[56,1,56,2],[57,1,57,2],[58,1,58,2],[57,6,57,7],[59,1,59,2],[60,1,60,6],[29,14,31,26],[41,14,41,26],[53,1,53,2]]}
["MEASUREMENTS",null,null,null,null,null,null,null,null,null,null,null,null,null,"FORMULAS"]
[null,"Metric",null,null,null,null,null,null,null,null,null,null,null,null,"Pi= 3.1416"]
[null,"CAPACITY",null,null,null,null,null,null,"AREA",null,null,null,null,null,"Circumference",null,null,"d(pi)"]
[null,10,"Milliliters","=",1,"centiliter",null,null,100,"sq millimeters","=",1,"sq centimeter",null,"Area"]
[null,10,"centiliters","=",1,"deciliter",null,null,100,"sq centimeters","=",1,"sq decimeter",null,null,"circle",null,"sqd(.7854)"]
[null,10,"deciliter","=",1,"liter",null,null,100,"sq decimeters","=",1,"sq meter (centare)",null,null,"Rectangle",null,"l(h)"]
[null,10,"liters","=",1,"dekaliter",null,null,100,"sq meters","=",1,"are",null,null,"Sphere"]
[null,10,"dekaliters","=",1,"hectoliter",null,null,10000,"sq meters","=",1,"hectare",null,null,null,"surface","r(sq)(pi)(4)"]
[null,1000,"liters","=",1,"kiloliter (stere)",null,null,100,"hectares","=",1,"sq kilometer",null,null,"Square",null,"l(sq)"]
[null,null,null,null,null,null,null,null,null,null,null,null,null,null,null,"Trapezoid",null,"Add Parallel sides (h)/2"]
[null,"Length",null,null,null,null,null,null,"WEIGHT",null,null,null,null,null,null,"Triangle",null,"b(h)/2"]
[null,10,"millimeters","=",1," Centimeter",null,null,10,"milligrams","=",1,"centigram"]
[null,10," Centimeters","=",1,"decimeter",null,null,10,"centigrams","=",1,"decigram",null,"Volume"]
[null,10,"Decimeters","=",1,"meter (m)",null,null,10,"decigrams","=",1,"gram",null,null,"Cone",null,"r(sq)pi(h)/3"]
[null,10,"meters","=",1,"dekameter",null,null,1000,"grams","=",1,"kilogram (kilo)",null,null,"Cube",null,"l(cu)"]
[null,100,"meters","=",1,"hectometer",null,null,100,"kilograms","=",1,"quintal",null,null,"Cylinder",null,"Base r(sq)pi(h)"]
[null,1000,"meters","=",1,"kilometer",null,null,1000,"kilograms","=",1,"metric ton",null,null,"Pyramid",null,"A of base(h)/3"]
[null,null,null,null,null,null,null,null,null,null,null,null,null,null,null,"Rectangle Prism",null,"l(w)(h)"]
[null,"Metric Equivalents of U.S. Weights and Measures",null,null,null,null,null,null,null,null,null,null,null,null,null,"Sphere",null,"r(cu)pi(4)/3"]
[null,"Dry Measure",null,null,null,null,null,null,"Avoirdupois Measure"]
[null,1,"pint","=",0.55059899999999995,"liter",null,null,1,"ounce","=","28.349527 grams"]
[null,1,"quart","=",1.101197,"liters",null,null,1,"pound","=",0.453592,"kilogram"]
[null,1,"peck","=",8.8095800000000004,"liters",null,null,1,"short ton","=",0.90718485999999998,"metric ton"]
[null,1,"bushel","=",0.35238000000000003,"hectoliter",null,null,1,"long ton","=",1.0160470399999999,"metric tons"]
[]
[null,"Liquid Measure",null,null,null,null,null,null,"Square Measure"]
[null,1,"pint","=",0.473167,"liter",null,null,1,"sq inch","=",6.4516,"sq centimeters"]
[null,1,"quart","=",0.94633199999999995,"liter",null,null,1,"sq foot","=",9.2903400000000005,"sq decimeters"]
[null,1,"gallon","=",3.7853289999999999,"lliters",null,null,1,"sq yard","=",0.83613099999999996,"sq meter",null,"Interest"]
[null,null,null,null,null,null,null,null,1,"acre","=",0.40468999999999999,"hectares",null,"The following is an approximate way to estimate the intterest on any principal for any number of days. When the principal contains cents, mark off four places from the right of the result to express the interest in dollars and cents. When the principal contains dollars only, mark off two places."]
[null,"Long Measure",null,null,null,null,null,null,1,"sq mile","=",2.59,"sq kilometers"]
[null,1,"inch","=",2.54,"centimeters",null,null,2.59,"sq kilometers","=",259,"hectares"]
[null,1,"yard","=",0.91440100000000002,"meters"]
[null,1,"mile","=",1.6093470000000001,"kilometers",null,null,"Cubic Measure"]
[null,null,null,null,null,null,null,null,1,"cu inch","=",16.3872,"cu centimeters"]
[null,null,null,null,null,null,null,null,1,"cu foot","=",2.8316999999999998E-2,"cu meter",null,0.02,"Principal","x","# of days","/ 180",null,null,0.08,"Principal","x","# of days","/ 45"]
[null,null,null,null,null,null,null,null,1,"cu yard","=",0.76456000000000002,"cu meter",null,0.04,"Principal","x","# of days","/ 90",null,null,0.09,"Principal","x","# of days","/ 40"]
[null,null,null,null,null,null,null,null,null,null,null,null,null,null,0.05,"Principal","x","# of days","/ 72",null,null,0.1,"Principal","x","# of days","/ 36"]
[null,"Kilometer ",null,"-"," Mile Conversion",null,null,null,"Miles",null,"-","  Kilometer Conversion",null,null,0.06,"Principal","x","# of days","/ 60",null,null,0.12,"Principal","x","# of days","/ 30"]
[null,1,null,null,0.06,null,null,null,1,null,null,1.6,null,null,7.0000000000000007E-2,"Principal","x","# of days","/ 52",null,null,0.15,"Principal","x","# of days","/ 24"]
[null,5,null,null,3.1,null,null,null,5,null,null,8.0500000000000007]
[null,10,null,null,6.2,null,null,null,10,null,null,16,null,null,"Number of days between the same day of two months (Excluding Leap Years)"]
[null,20,null,null,12.4,null,null,null,20,null,null,32.1]
[null,30,null,null,18.600000000000001,null,null,null,30,null,null,48,null,null,null,"Jan","Feb","Mar","Apr","May","Jun","Jul","Aug","Sep","Oct","Nov","Dec"]
[null,40,null,null,24.8,null,null,null,40,null,null,64.3,null,null,"Jan",365,31,59,90,120,151,181,212,243,273,304,334]
[null,50,null,null,31.1,null,null,null,50,null,null,80.5,null,null,"Feb",334,365,28,59,89,120,150,181,212,242,273,303]
[null,60,null,null,37.299999999999997,null,null,null,60,null,null,96.6,null,null,"Mar",306,337,365,31,61,92,122,153,184,214,245,275]
[null,70,null,null,43.5,null,null,null,70,null,null,112.75,null,null,"Apr",275,306,334,365,30,61,91,122,153,183,214,244]
[null,80,null,null,49.7,null,null,null,80,null,null,128.69999999999999,null,null,"May",245,276,304,334,365,31,61,92,123,153,184,214]
[null,90,null,null,55.9,null,null,null,90,null,null,144.80000000000001,null,null,"Jun",214,245,273,304,334,365,30,61,92,122,153,183]
[null,100,null,null,62.1,null,null,null,100,null,null,160.9,null,null,"Jul",184,215,243,274,304,335,365,31,62,92,123,153]
[null,null,null,null,null,null,null,null,null,null,null,null,null,null,"Aug",153,184,212,243,273,304,334,365,31,61,92,122]
[null,"U.S. Government Land Measure",null,null,null,null,null,null,null,null,null,null,null,null,"Sep",122,153,181,212,242,273,303,334,365,30,61,91]
[null,"Township",null,"=",36,"sections",null,null,null,null,null,null,null,null,"Oct",92,123,151,182,212,243,273,304,335,365,31,61]
[null,"section",null,"=",640,"acres",null,null,null,null,null,null,null,null,"Nov",61,92,120,151,181,212,242,273,304,334,365,30]
[null,"quarter section",null,"=",0.5,"sq mile",null,null,null,null,null,null,null,null,"Dec",31,62,90,121,151,182,212,243,274,304,335,365]
[null,".5 sq mile",null,"=","160\\","acres"]
[null,"1/8 section",null,"=",0.5,"miles long","North and South",null,"and","0.25 mile wide","=","80 acres",null,null,"Amount of One Dollar at Compound Interest"]
[null,"1/16 section",null,"=",0.25,"mile sq"]
[null,"1/4 mile sq",null,"=",40,"acres",null,null,null,null,null,null,null,null,"Years",0.03,0.04,4.4999999999999998E-2,0.05,0.06]
[null,"All sections are numbered 1 - 36 starting in the NE Corner",null,null,null,null,null,null,null,null,null,null,null,null,1,1.03,1.04,1.04,1.05,1.06]
[null,"All sections are divided into quarters and named by cardinal points",null,null,null,null,null,null,null,null,null,null,null,null,2,1.06,1.08,1.0900000000000001,1.1000000000000001,1.1200000000000001]
[null,null,null,null,null,null,null,null,null,null,null,null,null,null,3,1.0900000000000001,1.1200000000000001,1.1399999999999999,1.1499999999999999,1.19]
[null,null,"Inch",null,"Decimal","Metric",null,null,null,"Kitchen measurements",null,null,null,null,4,1.1200000000000001,1.17,1.19,1.21,1.26]
[null,null,3.125E-2,"=",0.3125,null,null,null,null,"3 tsp","=","1 tbsp",null,null,5,1.1499999999999999,1.21,1.24,1.27,1.33]
[null,null,6.25E-2,"=",6.25E-2,null,null,null,null,"4 tbsp","=","1/4 cup",null,null,6,1.19,1.26,1.3,1.34,1.41]
[null,null,9.375E-2,"=",9.375E-2,null,null,null,null,"5 1/2 tbsp","=","1/3 cup",null,null,7,1.23,1.31,1.36,1.4,1.5]
[null,null,0.125,"=",0.125,null,null,null,null,"8 tbsp ","=","1/2 cup",null,null,8,1.26,1.36,1.42,1.47,1.59]
[null,null,0.15625,"=",0.15625,null,null,null,null,"10 1/2 tbsp ","=","2/3 cup",null,null,9,1.3,1.42,1.48,1.55,1.68]
[null,null,0.1875,"=",0.1875,null,null,null,null,"12 tbsp ","=","3/4 cup",null,null,10,1.34,1.48,1.55,1.62,1.79]
[null,null,0.21875,"=",0.21875,null,null,null,null,"16 tbsp","=","1 cup",null,null,11,1.375,1.53,1.62,1.71,1.89]
[null,null,0.25,"=",0.25,null,null,null,null,null,null,null,null,null,12,1.42,1.6,1.69,1.79,2.0099999999999998]
[null,null,0.28125,"=",0.28125,null,null,null,null,"2 tbsp","=","1 oz liquid",null,null,13,1.46,1.66,1.77,1.88,2.13]
[null,null,0.3125,"=",0.3125,null,null,null,null,"1 cup","=","1/2 pint",null,null,14,1.51,1.73,1.85,1.98,2.2599999999999998]
[null,null,0.34375,"=",0.34375,null,null,null,null,"2 cups","=","1 pint",null,null,15,1.55,1.8,1.93,2.0699999999999998,2.39]
[null,null,0.375,"=",0.375,null,null,null,null,"4 cups ","=","1 quart",null,null,16,1.6,1.87,2.02,2.1800000000000002,2.54]
[null,null,0.40625,"=",0.40625,null,null,null,null,"4 quarts ","=","1 gallon",null,null,17,1.65,1.94,2.11,2.29,2.69]
[null,null,0.4375,"=",0.4375,null,null,null,null,"8 quarts","=","1 peck",null,null,18,1.7,2.02,2.2000000000000002,2.4,2.85]
[null,null,0.46875,"=",0.46875,null,null,null,null,"4 pecks","=","1 bushel",null,null,19,1.75,2.1,2.2999999999999998,2.52,3.02]
[null,null,0.5,"=",0.5,null,null,null,null,null,null,null,null,null,20,1.8,2.19,2.41,2.65,3.2]
[null,null,0.53125,"=",0.53125,null,null,null,null,"Can Sizes",null,null,null,null,21,1.86,2.27,2.52,2.78,3.4]
[null,null,0.5625,"=",0.5625,null,null,null,null,"8 oz","=","1 cup",null,null,22,1.91,2.37,2.63,2.92,3.6]
[null,null,0.59375,"=",0.59375,null,null,null,null,"Picnic ","=","1  1/2 cups (10 oz)",null,null,23,1.97,2.46,2.75,3.07,3.82]
[null,null,0.625,"=",0.625,null,null,null,null,"# 1 ","="," 2 cups(16 oz)",null,null,24,2.0299999999999998,2.56,2.87,3.22,4.04]
[null,null,0.65625,"=",0.65625,null,null,null,null,"# 2","=","2  1/2 cups (20 oz)",null,null,25,2.09,2.66,3,3.38,4.29]
[null,null,0.6875,"=",0.6875,null,null,null,null,"# 2  1/2","=","3  1/2 cups (28 oz)",null,null,26,2.15,2.77,3.14,3.55,4.54]
[null,null,0.71875,"=",0.71875,null,null,null,null,"#3 ","=","4 cups (32 oz)",null,null,27,2.2200000000000002,2.88,3.28,3.73,4.82]
[null,null,0.75,"=",0.75,null,null,null,null,"#10","=","13 cups (6lb 10 oz)",null,null,28,2.2799999999999998,2.99,3.43,3.92,5.1100000000000003]
[null,null,0.78125,"=",0.78125,null,null,null,null,null,null,null,null,null,29,2.35,3.11,3.58,4.1100000000000003,5.41]
[null,null,0.8125,"=",0.8125,null,null,null,null,null,null,null,null,null,30,2.42,3.24,3.74,4.32,5.74]
[null,null,0.84375,"=",0.84375,null,null,null,null,null,null,null,null,null,31,2.5,3.37,3.91,4.53,6.08]
[null,null,0.875,"=",0.875,null,null,null,null,null,null,null,null,null,32,2.57,3.5,4.09,4.76,6.45]
[null,null,0.90625,"=",0.90625,null,null,null,null,null,null,null,null,null,33,2.65,3.64,4.2699999999999996,5,6.84]
[null,null,0.9375,"=",0.9375,null,null,null,null,null,null,null,null,null,34,2.73,3.79,4.46,5.25,7.25]
[null,null,0.96875,"=",0.96875,null,null,null,null,null,null,null,null,null,35,2.81,3.94,4.66,5.51,7.68]
[null,null,1,"=",1,null,null,null,null,null,null,null,null,null,100,19.21,50.5,81.58,131.5,339.3]

{"sheet":"Info","index":4,"n_rows":58,"n_cols":17,"rows_kept":58,"cut":false,"hidden":false,"merged":[[55,1,58,4],[1,6,1,9],[31,6,31,9],[51,6,51,9],[39,1,47,4],[48,1,48,4],[49,1,51,4],[52,1,54,4],[37,1,37,4],[1,1,1,2],[2,1,2,4],[3,1,4,4],[38,1,38,4]]}
[]
[null,"Time",null,null,null,null,"Post Authorized 2 Letter Codes"]
[null,"Time Differences"]
[null,"Computed by adding the pos or neg number next to the city when it is noon (12:00) EST in New York",null,null,null,null,"Alabama","AL","Montana","MT",null,"Horsepower",null,"s = Shaft Speed",null,null,"hp changes only with changes in speed or torque."]
[null,null,null,null,null,null,"Alaska","AK","Nebraska","NE",null,null,null,"t = shaft torque in ft lbs."]
[null,null,null,null,null,null,"Arizona","AZ","Nevada","NV",null,"HP ","= 2Π ST",null,null,null,"1 HP - 745.7 Watts"]
[null,"City","Zone","City","Zone",null,"Arkansas","AR","New Hampshire","NH",null,null,33000,null,null,null,"(100 hp = 74570 watts or 74.6 Kw)"]
[null,"Alexandria","+ 7","Istanbul","+ 7",null,"California","CA","New Jersy","NJ"]
[null,"Amsterdam","+ 6","Jerusalem","+ 7",null,"Colorado","CO","New Mexico","NM"]
[null,"Anchorage","- 5","Johannesburg","+ 7",null,"Connecticut","CT","New York","NY"]
[null,"Athens","+ 7","Karachi","+ 10",null,"Deleware","DE","North Carolina","NC"]
[null,"Auckland","+ 17","Lima","0",null,"Dist. Of Col.","DC","North Dakota","ND"]
[null,"Baghdad","+ 8","Lisbon","+ 6",null,"Florida","FL","Ohio","OH"]
[null,"Barcelona","+ 6","London","+ 5",null,"Georgia","GA","Oklahoma","OK"]
[null,"Basra","+ 8","Los Angeles"," - 3",null,"Guam","GM","Oregon","OR"]
[null,"Belfast","+ 5","Melbourne","+ 15 *",null,"Hawaii","HI","Pennsylvania","PA"]
[null,"Berlin","+ 6","Moscow","+ 8",null,"Idaho","ID","Puerto Rico","PR"]
[null,"Bogota","0","Oslo","+ 6",null,"Illinois","IL","Rhode Island","RI"]
[null,"Bombay","+ 10.5","Peking","+ 13 *",null,"Indiana","IN","South Carolona","SC"]
[null,"Brussels","+ 6","Paris","+ 6",null,"Iowa","IA","South Dakota","SD"]
[null,"Budapest","+ 6","Pheonix","- 2",null,"Kansas","KS","Tennessee","TN"]
[null,"Buenos Aires","+ 2","Rio de Janeiro","+ 2",null,"Kentucky","KY","Texas","TX"]
[null,"Caracas","+ 1","Rome","+ 6",null,"Louisiana","LA","Utah","UT"]
[null,"Chicago","- 1","Santiago","+ 1",null,"Maine","ME","Vermont","VT"]
[null,"Copenhagen","+ 6","Seoul","+ 14 *",null,"Maryland","MD","Verginia","VA"]
[null,"Damascus","+ 7","Shanghai","+ 13 *",null,"Massechusettes","MA","Virgin Islands","VI"]
[null,"Delhi","+ 10.5","Singapore","+ 12.5 *",null,"Michigan","MI","Washington","WA"]
[null,"Denver","- 2","Stockholm","+ 6",null,"Minnesota","MN","West Virginia","WV"]
[null,"Dublin","+ 5","Sydney","+ 15 *",null,"Mississippi","MS","Wisconsin","WI"]
[null,"Frankfurt","+ 6","Tehran","+ 8.5 ",null,"Missouri","MO","Wyoming","WY"]
[null,"Geneva","+ 6","Tokyo","+ 14"]
[null,"Glasgow","+ 5","Vladivostok","+ 15",null,"Abbreviations approved for mail"]
[null,"Halifax","+ 1","Warsaw","+ 6",null,"Alley","Aly","Grove","Grv"]
[null,"Hong Kong","+ 13.5 *","Washington","0",null,"Arcade","Arc","Heights","Hts"]
[null,"Havana","0","Yokohama","+ 14",null,"Avenue","Ave","Highway","Hwy"]
[null,"Honolulu","- 5","Zurich","+6",null,"Building","Blvd","lane","Ln"]
[null,null,null,null,null,null,"Branch","Br","Manor","Mnr"]
[null,"* Indicates the morning of the following day.",null,null,null,null,"Bypass","Byp","Place","Pl"]
[null,"ABOUT JET LAG",null,null,null,null,"Causeway","Cswy","Plaza","Plz"]
[null,"Any time you travel through more than two time zones, you're likely to experience jet lag, a condition in which it's difficult to sleepa t night and stay awake during the day. You'll also find yourself hungry at inappropriate times. Researchers say jet lag is caused by the disruption of teh circadian sleep-wakefullness cycle. In other words, our biological clock isn't synchronized with the local time zone.",null,null,null,null,"Center","Ctr","Point","Pt"]
[null,null,null,null,null,null,"Circle","Cir","Road","Rd"]
[null,null,null,null,null,null,"Court","Ct","Rural","R"]
[null,null,null,null,null,null,"Courts","Cts","Square","Sq"]
[null,null,null,null,null,null,"Crescent","Cres","Street","St"]
[null,null,null,null,null,null,"Drive","Dr","Terrace","Ter"]
[null,null,null,null,null,null,"Expressway","Expy","Trail","Trl"]
[null,null,null,null,null,null,"Estended","Ext","Turnpike","Tpke"]
[null,null,null,null,null,null,"Extension","Ext","Viaduct","Via"]
[null,"WHAT CAN I DO ABOUT IT?",null,null,null,null,"Freeway","Fwy","Vista","Vis"]
[null,"** Get plenty of rest before your trip, and, if possible, alter your sleep by even 1 to 2 hours to get a little closer to the new time zone.",null,null,null,null,"Gardens","Gdns"]
[]
[null,null,null,null,null,null,"Approved Abbreviations for Canada"]
[null,"** Set your watch to your destination time as soons as onboard your flight, then try to sleep and eat according to that time.",null,null,null,null,"Alberta","AB","Ontario","ON"]
[null,null,null,null,null,null,"British Columbia","BC","Prince Edward Is","PE"]
[null,null,null,null,null,null,"Manitoba","MB","Quebec","PQ"]
[null,"** Upon arrival,fit into the local time as quickly as you can, participating in enough social activities to force youself to stay alert or feel sleepy at the appropriate times.",null,null,null,null,"New Brunswick","NB","Saskatchewan","SK"]
[null,null,null,null,null,null,"Newfoundland","NF","Yukon Territory","YT"]
[null,null,null,null,null,null,"Nova Scotia","NS","Labrador","LB"]

{"sheet":"Recipies","index":5,"n_rows":58,"n_cols":6,"rows_kept":58,"cut":false,"hidden":false,"merged":[[54,5,54,10],[55,5,55,10],[56,5,56,10],[57,5,57,10],[48,5,48,10],[49,5,49,10],[50,5,50,10],[51,5,51,10],[52,5,52,10],[53,5,53,10],[47,5,47,10],[36,5,36,10],[37,5,37,10],[38,5,38,10],[39,5,39,10],[40,5,40,10],[41,5,41,10],[42,5,42,10],[43,5,43,10],[44,5,44,10],[45,5,45,10],[46,5,46,10],[35,5,35,10],[24,5,24,10],[25,5,25,10],[26,5,26,10],[27,5,27,10],[28,5,28,10],[29,5,29,10],[30,5,30,10],[31,5,31,10],[32,5,32,10],[33,5,33,10],[34,5,34,10],[1,5,1,10],[22,5,22,10],[2,5,2,10],[3,5,3,10],[4,5,4,10],[5,5,5,10],[6,5,6,10],[7,5,7,10],[23,5,23,10],[9,5,9,10],[11,5,11,10],[12,5,12,10],[13,5,13,10],[14,5,14,10],[10,5,10,10],[15,5,15,10],[16,5,16,10],[17,5,17,10],[18,5,18,10],[19,5,19,10],[20,5,20,10],[21,5,21,10],[28,1,28,3],[29,1,29,2],[40,1,48,3],[20,1,26,3],[1,1,1,3]]}
[]
[null,"White Sauce",null,null,null,"Kitchen Measurements"]
[null,"Med","(1 cup)",null,null,"2 tbsp fat = 1 oz"]
[null,2,"tbsp","Butter",null,"1/2 cup fat = 1/4 pound or 1 stick"]
[null,2,"tbsp","Flour",null,"1 cup fat = 1/2 lb"]
[null,"1/4","tsp","salt",null,"2 cups fat = 1 lb"]
[null,"1","cup","milk",null,"1 cup hydro fat + 1 tsp salt = 1 cup butter"]
[null,null,null,null,null,"2  1/4 cups firm pack brown sugar = 1 lb"]
[null,"Thick","(1 cup)",null,null,"1  1/2 cups firm pack brown sugar = 1 cup granulated sugar"]
[null,"3","tbsp","Butter",null,"3  1/2 cups confectioner's sugar = 1 lb"]
[null,"4","tbsp","Flour",null,"4 cups sifted gen purp flour = 1 lb"]
[null,"1/4","tsp","salt",null,"4  1/2 cups sifted cake flour = 1 lb"]
[null,"1","cup","milk",null,"1 cup minus 2 tbsp all purp flour = 1 cup  sifted cake flour"]
[null,null,null,null,null,"3  1/2 cups unsifted graham flour = 1 lb"]
[null,"Thin","(1 cup)",null,null,"3 cups corn meal = 1 lb"]
[null,"1","tbsp","Butter",null,"1 tbsp cornstarch = 2 tbsp flour"]
[null,"1","tbsp","Flour",null,"2  1/2 cups rice = 1 lb"]
[null,"1/4","tsp","salt",null,"1 square chocolate = 1 oz"]
[null,"1","cup","milk",null,"3  1/2 tbsp cocoa and 1/2 tbsp butter = 1 oz or 1 sq chocolate"]
[null,null,null,null,null,"3 cups seedless raisins = 1  15 oz package"]
[null,"Melt butter in saucepan over low heat. Blend in flour, salt and a dash of white pepper, Add milk all at once. Cook quickly, stirring constantly, until mixture thickens and bubbles.",null,null,null,"3  1/2 cups seeded raisins = 1   15 oz package"]
[null,null,null,null,null,"1 cup chopped nut meats = 1.4 lb"]
[null,null,null,null,null,"16 marshmellows = 1/4 lb"]
[null,null,null,null,null,"5 cups grated cheese = 1 lb"]
[null,null,null,null,null,"6  1/2 tbsp cream cheese = 1   3 oz package"]
[null,null,null,null,null,"7 coarsly crumbled salted crackers = 1 cup"]
[null,null,null,null,null,"9 fine crumbled salted crackers = 1 cup"]
[null,null,null,null,null,"9 coarsly crumbled graham crackers = 1 cup"]
[null,"Plain Pastry",null,null,null,"11 finely crumbles graham crackers = 1 cup"]
[null,"Single Crust",null,null,null,"20 coarsly crumbled small vanilla wafers = 1 cup"]
[null,"1 1/4","cups","Flour",null,"30 finely crumbled small vanilla wafers = 1 cup"]
[null,"1/2","tsp","salt",null,"4 coarsly crumbled zwieback = 1 cup"]
[null,"1/2","cups","shortening",null,"9 finely crumbled zwieback = 1 cup"]
[null,"4 - 5","tbsp","cold water",null,"1  1/2 tbs vinegar + sweet milk to 1 cup = 1 cup sour milk"]
[null,"Double ",null,null,null,"1  1/2 tbs lemon juice + sweet milk to 1 cup = 1 cup sour milk"]
[null,"2","cups","Flour",null,"1/2 cup evap milk + 1/2 cup water = 1 cup milk"]
[null,"1","tsp","salt",null,"1 lemon = 3 - 4 tbsp juice"]
[null,"2/3","cups","shortening",null,"Grated rind of 1 lemon = 1  1/2 tsp"]
[null,"5 - 7","tbsp","cold water",null,"1 orange = 6 - 8 tbsp juice"]
[null,null,null,null,null,"Grated rind of 1 orange = 1  tbsp"]
[null,"Sift All-purpose flour and salt. Cut in shortening until pieces are the size of small peas. Sprinkle water over, one tablespoon as a time, tossing mixture after each addition. Form into ball; flatten on lightly floured surface. Roll 1/8 inch thick from center to edge.",null,null,null,"12 - 14 egg yolks = 1 cup"]
[null,null,null,null,null,"8 - 10 egg whites = 1 cup"]
[]
[null,null,null,null,null,"Kitchen Metrics"]
[null,null,null,null,null,"1/4 tsp = 1.2 ml"]
[null,null,null,null,null,"1/2 tsp = 2.5 ml"]
[null,null,null,null,null,"1 tsp = 4.9 ml"]
[null,null,null,null,null,"1 tbsp = 14.8 ml"]
[null,null,null,null,null,"1 jigger = 44.4 ml"]
[null,null,null,null,null,"1/4 cup = 59.2 ml"]
[null,null,null,null,null,"1/3 cup = 78.9 ml"]
[null,null,null,null,null,"1/2 cup = 118.4 ml"]
[null,null,null,null,null,"2/3 cup = 157.7 ml"]
[null,null,null,null,null,"3/4 cup = 177.5 ml"]
[null,null,null,null,null,"1 cup = 236.8 ml"]
[null,null,null,null,null,"1 pint = 437.6 ml"]
[null,null,null,null,null,"1 quart = 947.2 ml"]
[null,null,null,null,null,"2 liter = 1.000 ml"]

{"sheet":"Health","index":6,"n_rows":38,"n_cols":12,"rows_kept":38,"cut":false,"hidden":false,"merged":[[1,1,1,5],[2,1,2,5],[2,7,2,11],[3,7,3,11]]}
[]
[null,"BMI Chart"]
[null,"Height and weight chart for adults",null,null,null,null,null,"Calorie Table"]
[null,"MEN",null,null,null,null,null,"Milk, Cream and Cheese"]
[null,"Height","small frame","med frame","large frame",null,null,"Milk, Fluid, Whole, 3.5% fat",null,null,"1 cup",160]
[null,"5'2","128 - 134","131 - 141","138 - 150"]
[null,"5'3","130 - 136","133 - 143","140 - 153"]
[null,"5'4","132 - 138","135 - 145","142 - 156"]
[null,"5'5","134 - 140","137 -  148","144 - 160"]
[null,"5'6","136 - 142","139 - 151","146 - 164"]
[null,"5'7","138 - 145","142 - 154","149 - 168"]
[null,"5'8","140 - 148","145 - 157","152 - 172"]
[null,"5'9","142 - 151","148 - 160","155 - 176"]
[null,"5'10","144 - 154","151 - 163","158 - 180"]
[null,"5'11","146 - 157","154 - 166","161 -184"]
[null,"6'","149 - 160","157 - 170","164 - 188"]
[null,"6'1","152 - 164","160 - 174","168 - 192"]
[null,"6'2","155 -168","164 - 168","172 - 197"]
[null,"6'3","158 - 172","167 - 172","176 - 202"]
[null,"6'4","162 - 176","171 -  176","181 - 207"]
[]
[null,"WOMEN"]
[null,"Height","small frame","med frame","large frame"]
[null,"4' 10","102 - 111","109 - 121","118 - 131"]
[null,"4' 11","103 -113","111 - 123","120 - 134"]
[null,"5'","104 -115","113 - 126","122 - 137"]
[null,"5'1","106 - 118","115 - 129","125 - 140"]
[null,"5'2","108 - 121","118 - 132","128 - 143"]
[null,"5'3","111 - 124","121 - 135","131 - 147"]
[null,"5'4","114 - 127","124 - 138","134 - 151"]
[null,"5'5","117 - 130","127 - 141","137 - 155"]
[null,"5'6","120 - 133","130 - 144","140 - 159"]
[null,"5'7","123 - 136","133 - 147","143 - 163"]
[null,"5'8","126 - 139","136 - 150","146 - 167"]
[null,"5'9","129 - 142","139 - 153","149 - 170"]
[null,"5'10","132 - 145","142 - 156","152 - 173"]
[null,"5'11","135 - 148","145 - 159","155 - 176"]
[null,"6'","138 - 151","148 - 162","158 - 179"]

{"sheet":"Animals","index":7,"n_rows":36,"n_cols":34,"rows_kept":36,"cut":false,"hidden":false,"merged":[[2,1,2,2],[1,1,1,5],[4,1,4,2],[5,1,5,2],[12,1,12,2],[13,1,13,2],[14,1,14,2],[6,1,6,2],[7,1,7,2],[8,1,8,2],[9,1,9,2],[10,1,10,2],[11,1,11,2],[14,3,14,5],[2,3,2,5],[4,3,4,5],[5,3,5,5],[6,3,6,5],[7,3,7,5],[8,3,8,5],[9,3,9,5],[10,3,10,5],[11,3,11,5],[12,3,12,5],[13,3,13,5],[35,23,35,24],[35,21,35,22],[35,19,35,20],[35,17,35,18],[0,8,0,33],[1,8,1,33],[34,23,34,24],[34,21,34,22],[34,19,34,20],[34,17,34,18]]}
[null,null,null,null,null,null,null,"YEARS","Feed to date"]
[null,"Medical",null,null,null,null,null,4,"Pound Sack Counts"]
[null,"Symptom",null,"Medication",null,null,null,null,2,5,8,10,12,14,16,18,20,22,24,25,30,32,34,35,36,40,41,42,46,50,55,75,100,"TOTALS"]
[null,null,null,null,null,null,null,"Puppy",null,null,null,1,null,null,null,null,null,null,null,null,null,null,null,null,null,null,null,null,null,null,null,null,null,{"$f":"SUM(I4:AG4)","v":1}]
[null,"Goat Bleeding",null,"Phosphorous",null,null,null,"Dog",null,null,null,null,null,null,null,1,4,null,null,null,2,16,7,1,1,2,1,2,1,null,null,null,null,{"$f":"SUM(I5:AG5)","v":38}]
[null,"Goat Pain",null,"Arnica",null,null,null,"Cat",null,null,null,null,1,5,11,1,1,null,null,null,null,null,null,null,null,1,null,null,null,null,null,null,null,20]
[null,"Birds",null,"Cocodosis Treatment"]
[null,"Antibiotic",null,"Terramyacyn 343, 4.78  oz",null,null,null,null,{"$f":"SUM(I4:I6)","v":0},0,0,1,1,5,11,2,5,0,0,0,2,16,7,1,1,3,1,2,1,0,0,0,0,59]
[null,null,null,null,null,null,null,null,"$ /Yr","$ /Yr","$ /Yr","$ /Yr","$ /Yr","$ /Yr","$ /Yr","$ /Yr","$ /Yr","$ /Yr","$ /Yr","$ /Yr","$ /Yr","$ /Yr","$ /Yr","$ /Yr","$ /Yr","$ /Yr","$ /Yr","$ /Yr","$ /Yr","$ /Yr","$ /Yr","$ /Yr","$ /Yr"]
[null,null,null,null,null,null,null,null,{"$f":"IF(I7<>0,(I7*20)/$H$2,0)","v":0},0,0,0,0,0,0,0,0,0,0,0,0,0,0,0,0,0,0,0,0,0,0,0,0]
[null,null,null,null,null,null,null,"Poultry"]
[null,null,null,null,null,null,null,"Starter",null,null,null,null,null,null,null,null,null,null,null,4,null,null,null,null,null,null,null,null,null,1,null,null,null,{"$f":"SUM(I12:AG12)","v":5}]
[null,null,null,null,null,null,null,"Grower",null,null,null,null,null,null,null,null,null,null,null,null,null,null,null,null,null,null,null,null,null,null,null,null,null,{"$f":"SUM(I13:AG13)","v":0}]
[null,null,null,null,null,null,null,"Layer",null,null,null,null,null,null,null,null,null,null,null,null,null,null,null,null,null,null,null,null,null,16,null,null,null,{"$f":"SUM(I14:AG14)","v":16}]
[null,null,null,null,null,null,null,"Scratch",null,null,null,null,null,null,null,null,null,null,null,15,null,null,null,null,null,null,null,null,null,4,null,null,null,{"$f":"SUM(I15:AG15)","v":19}]
[null,null,null,null,null,null,null,"Cracked Corn",null,null,null,null,null,null,null,null,null,null,null,null,null,null,null,null,null,null,null,null,null,1,null,null,null,{"$f":"SUM(I16:AG16)","v":1}]
[]
[null,null,null,null,null,null,null,"GOAT",{"$f":"SUM(I12:I16)","v":0},0,0,0,0,0,0,0,0,0,0,19,0,0,0,0,0,0,0,0,0,22,0,0,0,41]
[null,null,null,null,null,null,null,null,"$ /Yr","$ /Yr","$ /Yr","$ /Yr","$ /Yr","$ /Yr","$ /Yr","$ /Yr","$ /Yr","$ /Yr","$ /Yr","$ /Yr","$ /Yr","$ /Yr","$ /Yr","$ /Yr","$ /Yr","$ /Yr","$ /Yr","$ /Yr","$ /Yr","$ /Yr","$ /Yr","$ /Yr","$ /Yr"]
[null,null,null,null,null,null,null,null,{"$f":"IF(I18<>0,(I18*20)/$H$2,0)","v":0},{"$f":"IF(J18<>0,(J18*20)/$H$2,0)","v":0},0,0,0,0,0,0,0,0,0,95,0,0,0,0,0,0,0,0,0,110,0,0,0]
[null,null,null,null,null,null,null,"Alfalfa Cubes"]
[null,null,null,null,null,null,null,"Cob",null,null,null,null,null,null,null,null,null,null,null,null,null,null,null,null,null,null,null,null,null,1,null,null,null,{"$f":"SUM(I22:AG22)","v":1}]
[null,null,null,null,null,null,null,"Sweet Cob",null,null,null,null,null,null,null,null,null,null,null,null,null,null,null,null,null,null,null,null,null,null,null,null,null,0]
[null,null,null,null,null,null,null,"Goat Feed",null,null,null,null,null,null,null,null,null,null,null,null,null,null,null,null,null,null,null,null,null,null,2,null,null,2]
[null,null,null,null,null,null,null,"Minerals",null,null,null,null,null,null,null,null,null,null,null,null,null,null,null,null,null,null,null,null,null,2,null,null,null,2]
[null,null,null,null,null,null,null,"Grain - Mill",null,null,null,null,null,null,null,null,null,null,null,2,null,null,null,null,null,null,null,null,null,15,null,null,null,17]
[null,null,null,null,null,null,null,"Dairy Feed",null,null,null,null,null,null,null,null,null,null,null,null,null,null,null,null,null,null,null,null,null,10,null,null,null,10]
[null,null,null,null,null,null,null,null,null,null,null,null,null,null,null,null,null,null,null,null,null,null,null,null,null,null,null,null,null,null,null,null,null,0]
[null,null,null,null,null,null,null,null,null,null,null,null,null,null,null,null,null,null,null,null,null,null,null,null,null,null,null,null,null,null,null,null,null,0]
[null,null,null,null,null,null,null,null,null,null,null,null,null,null,null,null,null,null,null,null,null,null,null,null,null,null,null,null,null,null,null,null,null,0]
[]
[null,null,null,null,null,null,null,null,{"$f":"SUM(I22:I30)","v":0},{"$f":"SUM(J22:J30)","v":0},0,0,0,0,0,0,0,0,0,2,0,0,0,0,0,0,0,0,0,28,2,0,0,32]
[null,null,null,null,null,null,null,null,"$ /Yr","$ /Yr","$ /Yr","$ /Yr","$ /Yr","$ /Yr","$ /Yr","$ /Yr","$ /Yr","$ /Yr","$ /Yr","$ /Yr","$ /Yr","$ /Yr","$ /Yr","$ /Yr","$ /Yr","$ /Yr","$ /Yr","$ /Yr","$ /Yr","$ /Yr","$ /Yr","$ /Yr","$ /Yr"]
[null,null,null,null,null,null,null,null,{"$f":"IF(I32<>0,(I32*20)/$H$2,0)","v":0},{"$f":"IF(J32<>0,(J32*20)/$H$2,0)","v":0},0,0,0,0,0,0,0,0,0,10,0,0,0,0,0,0,0,0,0,140,10,0,0,{"$f":"SUM(AH8+AH18+AH32)","v":132}]
[null,null,null,null,null,null,null,null,null,null,null,null,null,null,null,null,null,"Amt Total",null,"Amt / yr",null,"Amt / Mo",null,"Amt / Day",null,null,null,null,null,null,null,null,null,"TOTAL"]
[null,null,null,null,null,null,null,null,null,null,null,null,null,null,null,null,null,{"$f":"(AH34*20)","v":2640},null,{"$f":"(AH34*20)/H2","v":660},null,{"$f":"(AH34*20)/H2/12","v":55},null,{"$f":"(AH34*20)/365","v":7.2328767123287667}]

{"sheet":"Electronics","index":8,"n_rows":34,"n_cols":19,"rows_kept":34,"cut":false,"hidden":false,"merged":[[19,15,19,17],[0,0,0,18],[1,10,1,17],[9,10,9,17],[21,6,21,7],[18,8,18,9],[9,0,9,7],[30,9,30,13],[24,6,25,6],[1,0,1,7],[17,1,17,2],[27,6,27,7],[26,6,26,7],[21,9,21,13],[22,9,22,13],[23,9,23,13],[18,13,18,14]]}
["Electronic Worksheet"]
["SERIES EQUIVALENT",null,null,null,null,null,null,null,null,null,"PARALLEL EQUIVALENT"]
[null,"R1","R2","R3","R4","R5","R6","TOTAL",null,null,null,"R1 // R2","R3 // R4","R5 // R6","R7 // R8","R9 // R10",null,"TOTAL"]
["E",null,null,null,null,null,null,"ADD",null,null,"E",{"$f":"B12","v":4.3138399597382993},{"$f":"C12","v":7.6861600402617007},{"$f":"D12","v":0},{"$f":"E12","v":0},{"$f":"F12","v":4.3138399597382993},{"$f":"$C$26","v":24}]
["I",null,null,null,null,null,null,"EQUAL",null,null,"I",{"$f":"$H$13","v":6.0392551585304481E-2},{"$f":"$H$13","v":6.0392551585304481E-2},6.0392551585304481E-2,6.0392551585304481E-2,6.0392551585304481E-2,{"$f":"$H$13","v":6.0392551585304481E-2}]
["R",100,250,350,200,null,null,"ADD",null,null,"R",{"$f":"L14","v":71.430000000000007},{"$f":"M14","v":127.27},{"$f":"N14","v":0},0,71.430000000000007,{"$f":"IF(Q5<>0,Q4/Q5,0)","v":397.4}]
["P",null,null,null,null,null,null,"ADD",null,null,"P",{"$f":"IF(L4<>0,L4*L5,0)","v":0.26052380229924305},{"$f":"IF(M4<>0,M4*M5,0)","v":0.46418681672441076},0,0,0.26052380229924305,{"$f":"SUM(L7:P7)","v":0.98523442132289696}]
[]
[]
["SERIES",null,null,null,null,null,null,null,null,null,"PARALLEL"]
[null,"R1","R2","R3","R4","R5","R6","TOTAL",null,null,null,"R1","R2","R3","R4","R5","R6","TOTAL"]
["E",{"$f":"IF(H13<>0,H13*C20,0)","v":4.3138399597382993},{"$f":"IF(H13<>0,H13*C21,0)","v":7.6861600402617007},{"$f":"IF(H13<>0,H13*C22,0)","v":0},{"$f":"IF(H13<>0,H13*C23,0)","v":0},{"$f":"IF(H13<>0,H13*C24,0)","v":4.3138399597382993},{"$f":"IF(H13<>0,H13*C25,0)","v":7.6861600402617007},{"$f":"C26","v":24},null,null,"E",{"$f":"$R$12","v":24},{"$f":"$R$12","v":24},24,24,24,24,{"$f":"C26","v":24}]
["I",{"$f":"H13","v":6.0392551585304481E-2},{"$f":"H13","v":6.0392551585304481E-2},{"$f":"H13","v":6.0392551585304481E-2},{"$f":"H13","v":6.0392551585304481E-2},{"$f":"H13","v":6.0392551585304481E-2},{"$f":"H13","v":6.0392551585304481E-2},{"$f":"IF(H14<>0,H12/H14,0)","v":6.0392551585304481E-2},null,null,"I",{"$f":"IF(C20<>0, C26/C20,0)","v":0.33599328013439728},{"$f":"IF(C21<>0, C26/C21,0)","v":0.18857546947434589},{"$f":"IF(C22<>0, C26/C22,0)","v":0},{"$f":"IF(C23<>0, C26/C23,0)","v":0},{"$f":"IF(C24<>0, C26/C24,0)","v":0.33599328013439728},{"$f":"IF(C25<>0, C26/C25,0)","v":0.18857546947434589},{"$f":"SUM(L13:Q13)","v":1.0491374992174864}]
["R",{"$f":"C20","v":71.430000000000007},{"$f":"C21","v":127.27},{"$f":"C22","v":0},{"$f":"C23","v":0},{"$f":"C24","v":71.430000000000007},{"$f":"C25","v":127.27},{"$f":"SUM(C20:C25)","v":397.4},null,null,"R",{"$f":"C20","v":71.430000000000007},{"$f":"C21","v":127.27},{"$f":"C22","v":0},{"$f":"C23","v":0},{"$f":"C24","v":71.430000000000007},{"$f":"C25","v":127.27},{"$f":"IF(R13<>0,R12/R13,0)","v":22.875933819828887},"Less than any 1"]
["P",{"$f":"IF(B12<>0,B12*B13,0)","v":0.26052380229924305},0.46418681672441076,0,0,0.26052380229924305,0.46418681672441076,{"$f":"H12*H13","v":1.4494212380473075},"Greater than any 1",null,"P",{"$f":"L12*L13","v":8.0638387232255351},{"$f":"M12*M13","v":4.5258112673843014},0,{"$f":"O12*O13","v":0},{"$f":"P12*P13","v":8.0638387232255351},{"$f":"Q12*Q13","v":4.5258112673843014},{"$f":"R12*R13","v":25.179299981219675}]
[null,null,null,null,null,null,null,null,null,null,"Ratio",{"$f":"L13/$R$13","v":0.32025666834423749},{"$f":"M13/$R$13","v":0.17974333165576245},0,0,0.32025666834423749,0.17974333165576245]
[]
[null,"DATA INPUT"]
[null,null,null,null,null,null,null,null,"VOLTAGE DROPS",null,"En=","     Etot    Rn                                           R            Rtot","   En = In Rn","               Itot= Etot                       R                    Rtot",null,"Voltage Divider","In= Itot  Rtot /             Rn","En= Etot   Rn              /                    Rtot"]
[null,"R1",71.430000000000007,null,"E",null,null,null,null,null,"-","Entering",null,null,null,"Si Prefixes"]
[null,"R2",127.27,null,"I | R",null,null,null,null,null,"+","Exiting",null,null,null,"Power","Metric","Prefix"]
[null,"R3",null,null,null,null,"POWER",null,null," Work Chart",null,null,null,null,null,12,"Tera","T",100000000]
[null,"R4",null,null,null,null,"P =","I E","Series"," It = I1, I2,.. In..      Rt = 1 / (R1 + R2 + R3..Rn).    .Et = E1 + E2 + En",null,null,null,null,null,9,"Giga","G",1000000]
[null,"R5",71.430000000000007,null,null,null,"P =","I2 R","Parallel "," It = I1 + I2 + I3,.. In..   Rt = Et / It ,   In = Itot(Rtot/Rn)",null,null,null,null,null,6,"Mega","M",100000]
[null,"R6",127.27,null,"P",null,"P =","  E 2",null,"R 1","R 2","R 3","Rn","Total",null,3,"Kilo","K",1000]
[null,"E",24,null,"I  |  E",null,null,"R","E",{"$f":"B12/N26","v":0.17974333165576248},{"$f":"C12/N26","v":0.32025666834423755},{"$f":"D12/N26","v":0},{"$f":"E12/N26","v":0},{"$f":"C26","v":24},null,2,"hecto","h",10]
[null,"I",0,null,null,null,"True for ALL Circuits",null,"I",{"$f":"$N$26*(J28/N28)","v":8.6276799194765985},{"$f":"$N$26*(K28/N28)","v":15.372320080523401},{"$f":"$N$26*(L28/N28)","v":0},{"$f":"$N$26*(M28/N28)","v":0},null,null,1,"decca","da",1]
[null,null,null,null,null,null,"Pt = P1 + P2 + P3 + Pn",null,"R",{"$f":"C20","v":71.430000000000007},{"$f":"C21","v":127.27},{"$f":"C22","v":0},{"$f":"C23","v":0},{"$f":"SUM(J28:M28)","v":198.7},null,0,"Unit","plain",0]
[null,null,null,null,null,null,null,null,"P ",null,null,null,null,null,null,-1,"deci","d",0.1]
[null,null,null,null,null,null,null,null,null,null,null,null,null,null,null,-2,"centi","c",0.01]
[null,null,null,null,null,null,null,null,null,"OHM's Law",null,null,null,null,null,-3,"milli","m",1E-3]
[null,null,null,null,null,null,null,null,null,null,null,null,null,null,null,-6,"micro","u",1E-4]
[null,null,null,null,null,null,null,null,null,null,null,null,null,null,null,-9,"pica","n",9.9999999999999995E-7]
[null,null,null,null,null,null,null,null,null,null,null,null,null,null,null,-12,"nano","p",1E-8]